bitfinex-derivatives/quotes_ETHF0:USTF0_20260116
["timestamp","ask_amount","ask_price","bid_price","bid_amount"]
[1768574163025,0.13830041,3303.2,3301.6,0.15149]
[1768574163723,0.13830041,3303.2,3301.5,0.00213016]
[1768574163923,0.13830041,3303.2,3301.8,0.15148]
[1768574165438,0.00254861,3303.7,3301.5,0.00213016]
[1768574166022,0.14084902,3303.7,3301.6,3.028]
[1768574166434,0.00254861,3303.7,3302.4,0.15145]
[1768574166627,0.00254861,3303.7,3302.5,0.15145]
[1768574167332,0.13830041,3304.3,3302.9,0.15143]
[1768574167935,0.13830041,3305.8,3303.4,0.15141]
[1768574168136,0.13830041,3305.6,3303.5,0.1514]
[1768574168337,0.14115009,3305.6,3303.5,0.1514]
[1768574168635,0.13830041,3305.4,3303.0,0.15142]
[1768574168834,0.13830041,3305.4,3303.3,0.15141]
[1768574169031,0.13830041,3305.4,3303.5,0.1514]
[1768574171545,0.13830041,3305.4,3303.7,0.15139]
[1768574172131,0.13830041,3305.4,3303.9,0.15138]
[1768574172335,0.13830041,3305.4,3303.9,0.15359516]
[1768574172842,0.13830041,3305.4,3303.9,0.00221516]
[1768574173540,0.13830041,3305.2,3303.2,0.15142]
[1768574174045,0.13830041,3305.1,3302.4,3.028]
[1768574174247,0.13830041,3305.1,3303.3,0.15141]
[1768574174548,0.13830041,3305.1,3303.3,0.00280492]
[1768574174944,0.13830041,3305.1,3303.6,0.15139]
[1768574175140,0.13830041,3305.1,3303.3,0.00280492]
[1768574175846,0.13830041,3305.1,3303.3,0.15421492]
[1768574176048,0.28964041,3304.9,3303.3,0.00280492]
[1768574176242,0.13830041,3304.8,3303.3,0.00280492]
[1768574177447,0.28964041,3304.8,3303.3,0.00280492]
[1768574177750,0.13830041,3304.6,3303.3,0.00280492]
[1768574177951,0.13830041,3304.6,3301.4,40.80863182]
[1768574177952,0.13830041,3303.8,3301.8,0.15148]
[1768574178438,1.87076319,3303.9,3301.8,0.15148]
[1768574178439,0.13830041,3303.6,3301.8,0.15148]
[1768574178639,0.13830041,3303.6,3301.1,3.028]
[1768574178640,0.13830041,3303.3,3301.1,0.15151]
[1768574178843,0.13830041,3302.8,3301.1,0.15416372]
[1768574179038,0.14134446,3302.8,3301.1,0.15416372]
[1768574179355,0.14134446,3302.8,3301.1,0.00265372]
[1768574179560,0.13830041,3302.6,3301.1,0.00265372]
[1768574180456,0.13830041,3302.6,3301.1,0.15416372]
[1768574180752,0.13830041,3302.6,3301.2,0.1515]
[1768574180954,0.13830041,3302.6,3301.1,0.00265372]
[1768574180955,0.00304405,3302.8,3301.1,0.00265372]
[1768574181346,0.00304405,3302.8,3301.8,0.15148]
[1768574181656,0.13830041,3303.2,3301.3,4.89876319]
[1768574181856,0.13830041,3303.2,3302.0,0.15147]
[1768574182644,0.14095146,3303.2,3302.0,0.15147]
[1768574182840,0.14095146,3303.2,3301.8,1.87076319]
[1768574182841,0.00265105,3303.2,3301.8,1.87076319]
[1768574183044,0.13634183,3303.8,3301.4,1.87076319]
[1768574183241,0.13634183,3303.8,3301.5,3.029]
[1768574183452,0.13634183,3303.8,3302.3,0.15145]
[1768574184052,0.13903627,3303.8,3302.3,0.15145]
[1768574184260,0.13903627,3303.8,3301.1,0.00265372]
[1768574184447,0.13903627,3303.8,3302.0,0.15147]
[1768574184848,0.13634183,3303.1,3301.4,0.1515]
[1768574185445,0.13634183,3303.1,3301.1,0.00265372]
[1768574186652,0.13634183,3302.9,3301.1,0.00265372]
[1768574186857,0.13634183,3302.6,3301.1,0.00265372]
[1768574188763,0.14085164,3302.4,3301.1,0.00265372]
[1768574189670,0.14085164,3302.1,3300.9,1.23125638]
[1768574189971,0.14085164,3302.1,3300.3,0.15155]
[1768574190273,0.14085164,3302.1,3300.5,0.15154]
[1768574190474,0.14085164,3302.1,3300.7,0.15153]
[1768574190669,0.14085164,3302.1,3300.7,0.00277244]
[1768574190966,0.14085164,3302.1,3301.0,0.15151]
[1768574192268,0.14085164,3302.1,3300.7,0.00277244]
[1768574193578,0.14085164,3302.1,3301.0,0.15152]
[1768574193967,0.14085164,3302.1,3301.3,0.1515]
[1768574194173,0.14085164,3302.7,3300.8,1.87076319]
[1768574194374,0.14085164,3302.7,3301.5,0.15149]
[1768574195678,0.14085164,3302.7,3301.7,0.15148]
[1768574196071,0.14085164,3302.7,3301.0,3.03]
[1768574196273,0.14085164,3303.7,3302.0,0.15147]
[1768574196777,0.14085164,3303.7,3301.3,1.87076319]
[1768574197075,0.14085164,3303.7,3302.1,0.15147]
[1768574197278,0.14085164,3303.4,3301.4,0.1515]
[1768574197473,0.14085164,3302.9,3300.7,3.18430244]
[1768574198283,0.14085164,3302.9,3300.8,0.15152]
[1768574198580,0.14085164,3302.9,3301.0,0.15151]
[1768574199680,0.14085164,3302.4,3300.7,0.00277244]
[1768574200475,0.14085164,3303.5,3301.0,1.87076319]
[1768574200679,0.14085164,3303.3,3300.7,0.00277244]
[1768574200981,0.14085164,3303.3,3301.3,0.1515]
[1768574201180,0.14085164,3303.3,3301.4,0.1515]
[1768574202483,0.14085164,3303.3,3301.5,0.15149]
[1768574204084,0.14085164,3303.0,3300.9,0.15152]
[1768574204284,0.14085164,3302.5,3300.9,0.15152]
[1768574204587,0.14085164,3302.5,3300.7,0.00277244]
[1768574204885,0.14085164,3302.3,3300.7,0.00277244]
[1768574205089,0.14085164,3302.0,3300.7,0.00277244]
[1768574205384,0.14085164,3301.8,3300.3,0.15155]
[1768574206484,0.14085164,3301.8,3300.3,0.15477547]
[1768574206686,0.14085164,3301.8,3300.3,0.00322547]
[1768574207481,0.14085164,3301.8,3300.6,0.15153]
[1768574207683,0.14085164,3301.8,3300.3,0.15477547]
[1768574207984,0.14085164,3301.8,3300.4,0.15154]
[1768574208688,0.14085164,3301.8,3300.5,0.15154]
[1768574209781,0.14085164,3301.8,3300.3,0.00322547]
[1768574210888,0.14085164,3301.8,3300.3,0.15477547]
[1768574211088,0.14085164,3301.6,3300.3,0.15477547]
[1768574211676,6.49,3302.8,3299.6,3.03]
[1768574211677,0.13986988,3301.1,3299.6,0.15158]
[1768574211878,0.13986988,3301.1,3299.0,0.15161]
[1768574212077,0.13986988,3301.1,3299.1,0.1516]
[1768574212781,0.14313211,3301.1,3299.3,0.15159]
[1768574212988,0.14313211,3301.1,3299.1,0.0024361]
[1768574214696,0.14313211,3301.1,3299.4,0.15159]
[1768574215294,0.14313211,3301.1,3299.5,0.15159]
[1768574216785,0.13986988,3301.0,3299.1,0.0024361]
[1768574217390,0.13986988,3300.8,3299.1,0.0024361]
[1768574220493,0.13986988,3299.9,3297.3,0.14449311]
[1768574220794,3.17086988,3300.5,3297.7,0.14449311]
[1768574220994,0.13986988,3301.0,3299.3,0.15159]
[1768574221194,0.00326223,3301.1,3298.7,3.031]
[1768574221195,0.13986988,3300.6,3298.7,3.031]
[1768574221390,0.13986988,3300.6,3298.7,3.18516637]
[1768574221698,0.13986988,3300.1,3298.7,0.00254637]
[1768574221999,2.01063307,3299.2,3297.4,0.15168]
[1768574222200,0.13986988,3299.2,3297.4,0.15168]
[1768574222590,0.13986988,3299.2,3296.9,3.031]
[1768574222591,0.13986988,3298.9,3296.8,3.031]
[1768574222795,0.13986988,3298.4,3296.8,0.00320158]
[1768574222988,0.14294703,3298.4,3296.8,0.00320158]
[1768574223393,0.13986988,3298.3,3296.8,0.00320158]
[1768574224806,0.13986988,3297.8,3295.5,3.031]
[1768574224999,0.13986988,3297.4,3295.6,0.15176]
[1768574225199,0.13986988,3298.1,3296.2,0.15174]
[1768574225406,0.00307715,3298.4,3296.9,0.15171]
[1768574225603,0.00307715,3298.4,3296.4,0.14449311]
[1768574225806,0.00307715,3298.4,3296.4,3.17912108]
[1768574226007,0.00307715,3298.4,3296.4,0.14712108]
[1768574226208,0.00307715,3298.4,3297.2,0.15169]
[1768574226896,0.00307715,3298.4,3296.4,0.15434797]
[1768574227102,0.00307715,3298.4,3296.5,0.15172]
[1768574227605,0.00307715,3298.4,3297.4,0.01526784]
[1768574228306,0.00307715,3298.4,3296.5,0.14449311]
[1768574228504,2.15589411,3300.6,3296.4,0.00262797]
[1768574228505,0.13986988,3300.2,3297.9,0.15549881]
[1768574228710,0.13986988,3300.2,3298.2,1.87076319]
[1768574228915,0.13986988,3300.8,3298.3,0.14449311]
[1768574229212,0.13986988,3300.8,3298.5,0.14449311]
[1768574229510,0.00311025,3300.8,3299.6,0.0110057]
[1768574229706,0.00311025,3300.8,3299.6,0.01476374]
[1768574230511,0.00311025,3300.8,3299.6,0.00375804]
[1768574231905,0.13986988,3300.7,3298.1,0.14449311]
[1768574232102,0.13986988,3300.2,3298.1,0.14449311]
[1768574232407,0.13986988,3299.7,3297.4,3.032]
[1768574232606,0.13986988,3299.7,3297.2,0.15169]
[1768574232810,0.13986988,3300.3,3297.6,0.14449311]
[1768574233007,0.13986988,3300.3,3298.0,0.15165]
[1768574233806,0.13986988,3300.3,3298.1,0.15165]
[1768574234011,0.13986988,3300.3,3299.2,0.01132381]
[1768574234412,3.17498013,3300.8,3298.4,0.15163]
[1768574234616,0.13986988,3300.6,3298.4,0.15163]
[1768574235315,0.13986988,3300.6,3298.6,0.15163]
[1768574235914,0.00311025,3300.8,3298.3,0.14449311]
[1768574236105,0.00311025,3300.8,3298.0,1.87076319]
[1768574236106,0.14298013,3300.8,3298.9,0.15161]
[1768574236305,2.01063307,3300.4,3298.2,0.29614311]
[1768574236510,2.01063307,3300.4,3298.3,3.032]
[1768574236705,0.13986988,3300.3,3297.6,0.00327046]
[1768574236911,1.87076319,3300.2,3297.6,0.14776357]
[1768574237113,1.87076319,3300.2,3298.1,0.15165]
[1768574237310,0.13986988,3300.4,3298.2,0.15164]
[1768574238211,0.89594195,3300.3,3298.2,0.15164]
[1768574238402,0.13986988,3300.4,3298.2,0.15164]
[1768574238610,0.13986988,3300.2,3298.2,0.15164]
[1768574239103,0.13986988,3300.2,3297.6,0.00327046]
[1768574239316,0.13986988,3299.6,3297.6,0.00327046]
[1768574239511,0.13986988,3299.4,3297.6,0.00327046]
[1768574240915,0.13986988,3299.4,3298.5,0.02568988]
[1768574241117,0.13986988,3299.4,3297.6,0.00327046]
[1768574242216,0.18714234,3300.0,3297.6,0.18078308]
[1768574242408,0.18714234,3300.6,3298.4,0.15164]
[1768574242612,0.18714234,3300.3,3298.4,0.15164]
[1768574243223,0.00311025,3300.8,3298.7,0.00492568]
[1768574243417,1.08425387,3300.7,3298.5,0.17751262]
[1768574243610,0.18714234,3300.5,3298.1,0.15165]
[1768574243814,0.18714234,3300.3,3298.1,0.15165]
[1768574244117,0.18714234,3299.9,3297.9,0.15166]
[1768574244626,0.18714234,3299.9,3298.1,0.15165]
[1768574245827,0.18714234,3299.9,3297.6,0.18078308]
[1768574246016,0.18714234,3299.7,3297.6,0.18078308]
[1768574246213,0.18714234,3299.7,3297.6,0.33245308]
[1768574246417,0.18714234,3299.7,3297.6,0.15494046]
[1768574246822,0.18714234,3299.7,3297.6,0.15986614]
[1768574247127,0.18714234,3299.7,3298.6,0.02541681]
[1768574247423,0.18714234,3299.7,3297.6,0.15494046]
[1768574247626,3.033,3300.4,3297.6,0.15494046]
[1768574247627,0.18714234,3299.5,3297.6,0.00327046]
[1768574247825,0.18714234,3299.3,3297.6,0.00327046]
[1768574248026,1.08455888,3299.2,3297.6,0.00327046]
[1768574248232,0.18714234,3299.2,3297.6,0.00327046]
[1768574248420,0.89733911,3299.1,3297.6,0.00327046]
[1768574248621,0.18714234,3299.2,3297.6,0.00327046]
[1768574249225,0.21015686,3299.0,3297.6,0.00327046]
[1768574249434,0.89736328,3298.9,3297.6,0.00327046]
[1768574249636,0.89736328,3298.8,3297.6,0.00327046]
[1768574249934,0.15163,3298.5,3296.3,0.19691929]
[1768574250125,1.10747916,3298.4,3296.3,0.19691929]
[1768574250432,0.8973223,3298.3,3296.3,0.20184497]
[1768574250635,0.8968666,3298.2,3296.3,0.19691929]
[1768574250827,0.21015686,3298.4,3296.3,0.20027256]
[1768574251126,0.00375397,3298.2,3296.3,0.20027256]
[1768574251325,0.21391083,3298.2,3296.3,0.00335327]
[1768574251732,0.21391083,3298.2,3296.3,0.15508327]
[1768574251927,0.21015686,3298.0,3296.3,0.00335327]
[1768574252231,0.21015686,3298.0,3294.3,1.76522869]
[1768574252232,0.36187686,3296.7,3294.4,0.15182]
[1768574252432,0.21015686,3296.5,3294.2,0.19691929]
[1768574252935,0.21015686,3296.3,3294.2,0.19691929]
[1768574253131,0.21015686,3296.3,3294.2,0.19957711]
[1768574253336,0.21015686,3295.0,3291.9,3.71301877]
[1768574253630,0.21015686,3294.7,3291.8,0.15194]
[1768574253833,0.21015686,3294.7,3290.9,3.71301877]
[1768574253834,0.21015686,3293.6,3290.9,0.19691929]
[1768574254133,5.18889411,3294.9,3290.9,0.19691929]
[1768574254134,0.21015686,3293.4,3290.9,0.19691929]
[1768574254336,0.21280348,3293.4,3290.9,0.20047091]
[1768574254523,0.21280348,3293.4,3290.9,0.20539659]
[1768574254729,0.21280348,3293.4,3291.0,1.76522869]
[1768574254730,0.00264662,3293.4,3291.0,1.76522869]
[1768574254921,0.21015686,3294.8,3292.2,0.00492568]
[1768574255126,0.21015686,3294.8,3291.4,0.00492568]
[1768574255329,0.21015686,3294.6,3291.4,0.15196]
[1768574255526,0.21015686,3294.4,3291.5,0.19691929]
[1768574255727,0.21015686,3294.4,3291.6,0.19691929]
[1768574256034,0.21403676,3294.4,3291.9,0.19691929]
[1768574256334,0.21403676,3294.4,3291.6,0.34886929]
[1768574256534,0.21403676,3294.4,3291.7,0.19691929]
[1768574256731,0.21403676,3294.4,3291.7,0.20184497]
[1768574256933,0.21403676,3294.4,3291.7,0.19691929]
[1768574257236,0.0038799,3294.4,3292.3,0.19691929]
[1768574257432,0.0038799,3294.4,3292.9,0.19691929]
[1768574257826,0.0038799,3294.4,3293.1,0.00492568]
[1768574258142,0.0038799,3294.4,3292.9,0.19691929]
[1768574258438,0.21015686,3295.6,3293.6,0.00492568]
[1768574258633,0.21015686,3295.6,3293.1,0.19691929]
[1768574258835,0.21015686,3296.3,3293.5,0.19691929]
[1768574259232,0.21015686,3296.3,3293.7,0.15185]
[1768574259442,0.21326208,3296.3,3293.9,0.19691929]
[1768574259637,0.00310522,3296.3,3294.2,0.19691929]
[1768574259841,0.00310522,3296.3,3294.4,0.19691929]
[1768574260235,0.00310522,3296.3,3294.8,0.00492568]
[1768574260434,0.00310522,3296.3,3294.5,0.19691929]
[1768574260634,0.00310522,3296.3,3295.1,0.00492568]
[1768574260845,0.00310522,3296.3,3295.5,0.00492568]
[1768574261028,0.21015686,3297.6,3295.0,0.19691929]
[1768574261234,0.21015686,3297.6,3295.1,0.15179]
[1768574261434,0.21015686,3297.6,3295.2,0.19691929]
[1768574261641,0.21015686,3297.6,3294.5,3.035]
[1768574261848,0.21015686,3297.3,3294.3,3.23191929]
[1768574262142,0.21015686,3297.0,3294.3,0.19691929]
[1768574262342,0.00312936,3297.3,3294.3,0.19691929]
[1768574262343,0.21015686,3296.9,3294.3,0.19691929]
[1768574262938,0.21015686,3296.8,3294.3,0.19691929]
[1768574263131,0.21015686,3296.7,3294.2,0.15183]
[1768574263329,0.21015686,3296.7,3293.7,0.00257384]
[1768574263330,0.21015686,3296.6,3293.7,0.00257384]
[1768574263535,0.21015686,3296.6,3294.1,0.19691929]
[1768574263945,0.21015686,3296.4,3293.7,0.00257384]
[1768574264444,0.00312936,3297.3,3294.5,0.19691929]
[1768574264743,0.00312936,3297.3,3294.8,0.19691929]
[1768574264946,0.00312936,3297.3,3295.0,0.19691929]
[1768574265139,0.21328622,3297.3,3294.9,40.8]
[1768574265745,0.21328622,3297.3,3294.6,0.19691929]
[1768574265937,0.21328622,3297.3,3294.6,0.20184497]
[1768574266136,0.21015686,3297.0,3294.7,40.8]
[1768574266738,0.00312936,3297.3,3295.1,0.20184497]
[1768574266940,0.00312936,3297.3,3295.1,0.34870929]
[1768574267137,0.21015686,3297.0,3294.4,3.38473929]
[1768574267341,0.21015686,3297.0,3294.5,0.19691929]
[1768574267648,0.21015686,3297.0,3294.5,0.20184497]
[1768574267842,0.21015686,3297.0,3294.6,0.20184497]
[1768574268256,0.00312936,3297.3,3295.0,0.19691929]
[1768574268544,0.00312936,3297.3,3295.1,0.19691929]
[1768574268754,0.21015686,3297.1,3294.6,3.036]
[1768574268952,0.21015686,3296.8,3294.4,0.19691929]
[1768574269150,0.15172,3296.7,3294.5,0.19691929]
[1768574269356,0.21328622,3297.3,3294.7,0.20184497]
[1768574269544,0.1517,3297.0,3294.7,0.19691929]
[1768574269746,0.1517,3297.0,3294.9,0.00492568]
[1768574269947,0.21328622,3297.3,3295.1,0.19691929]
[1768574270152,0.00312936,3297.3,3295.1,0.34870929]
[1768574270344,0.00312936,3297.3,3295.3,0.20184497]
[1768574270548,0.00312936,3297.3,3295.3,0.19691929]
[1768574270756,0.00312936,3297.3,3295.4,0.00492568]
[1768574270954,0.00312936,3297.3,3295.3,0.19691929]
[1768574271159,0.21015686,3297.2,3294.5,3.38472929]
[1768574271454,0.4422067,3297.0,3294.7,0.29778786]
[1768574271653,0.1517,3297.0,3295.3,0.29778786]
[1768574272050,0.1517,3297.0,3295.6,0.00492568]
[1768574272251,0.00312936,3297.3,3295.0,3.18779]
[1768574272456,0.00312936,3297.3,3295.2,0.45449354]
[1768574272656,0.00312936,3297.3,3295.4,0.00492568]
[1768574272860,0.00312936,3297.3,3295.7,0.00492568]
[1768574273061,0.00312936,3297.3,3296.0,0.00492568]
[1768574273260,0.00312936,3297.3,3296.3,0.00492568]
[1768574273461,0.00312936,3297.3,3296.3,0.00738999]
[1768574273657,0.4421467,3298.4,3296.8,0.00492568]
[1768574273864,0.4421467,3298.4,3296.3,0.00246431]
[1768574274064,0.4421467,3298.4,3296.3,0.30025217]
[1768574274360,0.15162,3298.8,3296.6,0.29778786]
[1768574274565,0.15162,3298.8,3296.7,0.29778786]
[1768574274762,0.15405582,3298.8,3296.7,0.30271354]
[1768574274966,0.15405582,3298.8,3296.8,0.00492568]
[1768574275359,0.15405582,3298.8,3296.7,0.29778786]
[1768574275667,0.15405582,3298.8,3296.9,0.00492568]
[1768574276169,0.00243582,3298.8,3297.1,0.00492568]
[1768574276353,0.00243582,3298.8,3297.2,0.00492568]
[1768574276559,0.00243582,3298.8,3297.5,0.00492568]
[1768574276759,0.00243582,3298.8,3296.7,3.035]
[1768574277089,0.00243582,3298.8,3297.1,0.00492568]
[1768574277366,0.00243582,3298.8,3297.3,0.00492568]
[1768574277564,0.00243582,3298.8,3297.4,0.00492568]
[1768574277764,0.00243582,3298.8,3297.5,0.00492568]
[1768574277965,0.00243582,3298.8,3297.6,0.00492568]
[1768574278370,0.00243582,3298.8,3297.4,0.29778786]
[1768574278667,3.4770467,3300.5,3297.8,0.15166]
[1768574278863,0.89348082,3300.4,3298.1,0.29778786]
[1768574279167,0.4420867,3299.8,3297.6,40.95167]
[1768574279358,0.4420867,3299.8,3297.6,41.24945786]
[1768574279562,0.2905067,3300.4,3297.7,0.29778786]
[1768574279762,0.89290166,3300.3,3298.0,0.29778786]
[1768574279963,0.44542023,3300.4,3298.1,3.33278786]
[1768574280264,0.44542023,3300.4,3298.2,0.29778786]
[1768574280458,0.15155,3300.3,3298.5,0.00492568]
[1768574280667,0.2905067,3300.1,3297.8,3.18666]
[1768574280869,0.2905067,3300.1,3298.1,0.15165]
[1768574281069,0.15156,3300.2,3298.4,0.00492568]
[1768574281275,0.00336353,3300.4,3298.6,0.00492568]
[1768574281466,0.00336353,3300.4,3298.6,0.29778786]
[1768574281667,0.00336353,3300.4,3299.0,0.00492568]
[1768574281873,0.00336353,3300.4,3299.0,0.00742066]
[1768574282073,0.00336353,3300.4,3299.2,0.00492568]
[1768574282283,0.00336353,3300.4,3299.0,0.00249498]
[1768574282472,0.00336353,3300.4,3299.5,0.00492568]
[1768574282874,0.00336353,3300.4,3299.7,0.00492568]
[1768574283072,0.00336353,3300.4,3299.5,0.00492568]
[1768574283469,0.00336353,3300.4,3299.7,0.00492568]
[1768574283677,1.24540752,3300.8,3299.8,0.00492568]
[1768574283876,1.24540752,3300.8,3299.6,0.00492568]
[1768574284073,1.39693752,3300.8,3299.4,0.00492568]
[1768574284278,1.39693752,3300.8,3299.3,0.00492568]
[1768574284482,1.39693752,3300.8,3299.0,0.00249498]
[1768574284784,1.40056192,3300.8,3299.3,0.00492568]
[1768574285174,1.40056192,3300.8,3299.4,0.00492568]
[1768574285484,1.40056192,3300.8,3299.3,0.00492568]
[1768574285683,1.24903192,3300.8,3299.3,0.00492568]
[1768574285882,1.24903192,3300.8,3299.5,0.00492568]
[1768574286073,1.24903192,3300.8,3299.3,0.00492568]
[1768574286474,1.24903192,3300.8,3299.5,0.00492568]
[1768574286686,1.24903192,3300.8,3299.3,0.00492568]
[1768574287084,1.24903192,3300.8,3299.5,0.00492568]
[1768574287382,1.24903192,3300.8,3299.3,0.00492568]
[1768574287570,1.24903192,3300.8,3299.0,0.30028284]
[1768574287776,1.24903192,3300.8,3299.5,0.00492568]
[1768574288188,1.24903192,3300.8,3299.1,0.1516]
[1768574288477,1.24903192,3300.8,3300.0,0.00492568]
[1768574288978,1.24903192,3300.8,3300.5,0.00492568]
[1768574289175,1.24903192,3300.8,3299.2,40.8]
[1768574289587,1.24903192,3300.8,3299.7,0.00492568]
[1768574289990,1.24903192,3300.8,3300.0,0.00492568]
[1768574290176,1.24903192,3300.8,3299.2,40.8]
[1768574290177,1.24903192,3300.8,3299.3,0.29778786]
[1768574290387,0.15148,3301.9,3300.4,0.00492568]
[1768574290690,3.3245067,3302.3,3299.2,40.8]
[1768574290691,0.2905067,3302.3,3300.2,3.48726354]
[1768574290904,0.2905067,3302.3,3300.3,0.44933786]
[1768574291091,0.15145,3302.5,3300.7,0.00492568]
[1768574291283,0.2905067,3302.3,3300.3,0.15155]
[1768574291682,0.2905067,3302.3,3300.7,0.00492568]
[1768574291885,0.2905067,3302.3,3300.8,0.00492568]
[1768574292084,0.00348169,3302.5,3300.6,0.29778786]
[1768574292284,0.29398839,3302.5,3301.1,0.00492568]
[1768574292490,0.29398839,3302.5,3300.4,0.29778786]
[1768574292692,2.15589411,3304.1,3300.3,3.18947568]
[1768574292693,0.2905067,3303.8,3301.5,0.29778786]
[1768574292889,0.15137,3304.2,3301.7,0.29778786]
[1768574293084,0.2905067,3304.4,3302.1,0.44924786]
[1768574293285,0.2905067,3304.4,3302.4,0.00492568]
[1768574293581,0.15134,3304.9,3302.1,0.29778786]
[1768574293790,0.00367725,3304.4,3302.9,0.44921786]
[1768574293991,0.2905067,3305.6,3304.0,0.00492568]
[1768574294198,0.2905067,3306.2,3303.7,0.30271354]
[1768574294389,0.2905067,3306.2,3303.7,0.29778786]
[1768574294590,0.2905067,3306.8,3304.0,0.29778786]
[1768574294794,0.2905067,3306.8,3304.3,0.30271354]
[1768574294996,0.29306259,3306.8,3304.5,0.00492568]
[1768574295191,0.29306259,3306.8,3304.6,0.00492568]
[1768574295495,0.29306259,3306.8,3304.5,0.00492568]
[1768574295696,0.29306259,3306.8,3304.8,0.00492568]
[1768574295992,0.2905067,3305.9,3303.5,40.8]
[1768574296185,0.2905067,3305.6,3303.1,0.29778786]
[1768574296384,0.15136,3304.6,3301.7,3.32878786]
[1768574296581,0.4418767,3304.3,3301.8,40.8]
[1768574296794,0.4418767,3304.3,3301.9,0.29778786]
[1768574296994,0.444466,3304.3,3302.0,0.00492568]
[1768574297187,0.444466,3304.3,3302.1,0.00492568]
[1768574297388,0.2905067,3304.2,3302.1,0.00492568]
[1768574297682,0.2905067,3304.2,3302.2,0.00492568]
[1768574297883,0.2905067,3303.7,3301.9,0.00380519]
[1768574298092,0.2905067,3303.2,3301.9,0.00380519]
[1768574298289,0.4419267,3303.2,3301.9,0.00380519]
[1768574298489,0.15142,3303.2,3302.5,0.00492568]
[1768574298695,0.2905067,3303.8,3302.4,0.00492568]
[1768574298897,0.2905067,3303.8,3301.9,0.00380519]
[1768574299294,0.2905067,3303.8,3301.9,0.00873087]
[1768574299998,0.2905067,3303.8,3301.9,0.00380519]
[1768574300201,0.1514,3303.6,3301.9,0.00380519]
[1768574300403,0.0025893,3304.3,3302.6,0.00492568]
[1768574300697,0.0025893,3304.3,3302.3,0.00492568]
[1768574300896,0.0025893,3304.3,3302.0,0.29778786]
[1768574300897,0.0025893,3304.3,3302.6,0.00492568]
[1768574301398,0.0025893,3304.3,3302.0,0.29778786]
[1768574301399,0.38166864,3304.3,3302.7,0.00492568]
[1768574301598,0.38166864,3304.3,3302.4,0.00492568]
[1768574301898,0.15137,3304.2,3302.4,0.00492568]
[1768574302101,0.15137,3304.2,3302.6,0.00492568]
[1768574302291,0.15137,3304.2,3302.5,0.00492568]
[1768574302797,0.53045934,3304.1,3301.9,0.00380519]
[1768574302993,2.42532812,3304.3,3301.9,0.00380519]
[1768574302994,0.37907934,3304.0,3302.1,0.00492568]
[1768574303201,0.15142,3303.2,3301.9,0.00380519]
[1768574303592,0.15142,3303.2,3302.1,0.00492568]
[1768574304093,0.15142,3303.2,3302.2,0.00492568]
[1768574304295,0.15142,3303.2,3301.9,0.00380519]
[1768574304296,0.37907934,3303.2,3301.9,0.00380519]
[1768574304494,2.42273882,3303.6,3300.8,0.38453798]
[1768574304495,0.15144,3302.8,3300.8,0.38453798]
[1768574304697,0.53051934,3302.7,3300.5,3.03]
[1768574304998,0.53051934,3302.7,3300.6,40.80492568]
[1768574305297,0.53051934,3302.7,3300.7,0.00492568]
[1768574305494,0.53051934,3302.7,3301.1,0.00492568]
[1768574305893,0.53051934,3302.7,3301.3,0.00492568]
[1768574306094,0.53051934,3302.7,3301.1,0.00492568]
[1768574306391,0.53051934,3302.7,3300.7,0.00317436]
[1768574306595,0.37907934,3302.5,3301.0,0.00492568]
[1768574306795,0.37907934,3302.5,3300.7,0.00317436]
[1768574306993,0.37907934,3302.5,3301.1,0.00492568]
[1768574307398,0.37907934,3302.5,3301.3,0.00492568]
[1768574307597,0.37907934,3302.5,3301.1,0.00492568]
[1768574307900,0.15145,3302.6,3301.4,0.00492568]
[1768574308098,0.15145,3302.6,3300.7,0.00317436]
[1768574308099,0.15145,3302.6,3301.3,0.00492568]
[1768574308302,0.15145,3302.6,3301.1,0.00492568]
[1768574308694,0.15145,3302.6,3301.3,0.00492568]
[1768574308896,0.39107418,3302.4,3300.9,0.00492568]
[1768574309093,0.54253418,3302.2,3300.7,0.00317436]
[1768574309499,0.54253418,3302.2,3300.9,0.00492568]
[1768574309689,0.39107418,3302.0,3299.1,0.1516]
[1768574309894,0.54257418,3301.5,3299.1,3.56483496]
[1768574310200,0.1515,3301.4,3299.4,0.00492568]
[1768574310399,0.1515,3301.4,3299.7,0.00492568]
[1768574310707,0.15440857,3301.4,3299.8,0.00492568]
[1768574311006,0.15440857,3301.4,3300.1,0.00492568]
[1768574311302,0.15440857,3301.4,3300.0,0.00492568]
[1768574311696,0.15440857,3301.4,3300.2,0.00492568]
[1768574311895,0.15440857,3301.4,3300.0,0.00492568]
[1768574312100,0.15440857,3301.4,3299.7,0.00268714]
[1768574312301,0.00290857,3301.4,3300.2,0.15155]
[1768574312507,0.00290857,3301.4,3301.0,0.00492568]
[1768574312806,0.15144,3302.7,3301.0,0.00492568]
[1768574312997,0.89457636,3302.6,3300.3,0.53478496]
[1768574313193,0.15144,3302.7,3300.9,0.00492568]
[1768574313410,0.54254418,3302.1,3299.8,0.15157]
[1768574313598,0.15148,3301.9,3299.9,0.00492568]
[1768574313801,0.15148,3301.9,3300.2,0.00492568]
[1768574314008,0.15148,3301.9,3299.8,0.15157]
[1768574314303,0.15148,3301.8,3300.2,0.00492568]
[1768574314508,0.39107418,3301.5,3299.8,0.00492568]
[1768574314809,0.39107418,3301.5,3299.7,0.00268714]
[1768574315006,0.39107418,3301.5,3300.0,0.00492568]
[1768574315308,0.15152,3301.0,3299.7,0.00268714]
[1768574315504,0.39107418,3301.3,3299.7,0.00268714]
[1768574315701,0.15148,3301.8,3300.1,0.00492568]
[1768574315901,0.89490541,3301.7,3299.9,0.00492568]
[1768574316102,0.15148,3301.8,3300.3,0.00492568]
[1768574316295,0.15148,3301.8,3300.2,0.00492568]
[1768574316703,0.15148,3301.8,3300.4,0.00492568]
[1768574317001,0.15148,3301.8,3300.2,0.00492568]
[1768574317301,0.8953359,3301.7,3300.2,0.00492568]
[1768574317502,0.15148,3301.8,3300.5,0.00492568]
[1768574317808,0.89533839,3301.7,3300.2,0.00492568]
[1768574318007,0.15148,3301.8,3300.2,0.00492568]
[1768574318207,0.89533479,3301.7,3300.5,0.00492568]
[1768574318411,0.15148,3301.8,3300.8,0.00492568]
[1768574318596,0.15148,3301.8,3300.4,0.00492568]
[1768574318597,0.89544652,3301.7,3300.4,0.00492568]
[1768574318801,0.15148,3301.8,3300.4,0.00492568]
[1768574319108,1.28651963,3301.7,3299.7,41.1859221]
[1768574319302,0.39107418,3301.4,3299.7,0.00268714]
[1768574320009,1.87382518,3301.8,3299.7,0.00268714]
[1768574320308,0.89552876,3301.7,3299.8,0.38323496]
[1768574320508,0.89552876,3301.7,3299.7,0.00268714]
[1768574320509,0.15427747,3302.1,3300.0,0.53479496]
[1768574320710,0.89566332,3302.0,3300.2,0.15155]
[1768574321009,0.00280747,3302.1,3300.2,0.53478496]
[1768574321400,0.00280747,3302.1,3300.4,0.15154]